fUSD/lending_fUSD_20240617
["ID","MTS","AMOUNT","RATE_DAILY","PERIOD"]
[329751421,1718649046641,-564.61,0.00021917,2]
[329751422,1718649046651,-500.0,0.00021917,2]
[329751423,1718649046660,-272.194074,0.00021917,2]
[329751424,1718649046669,-272.194074,0.00021917,2]
[329751425,1718649046678,-750.54,0.00021917,2]
[329751426,1718649046688,-858.91,0.00021917,2]
[329751427,1718649046697,-151.0,0.00021917,2]
[329751428,1718649046706,-293.679135,0.00021917,2]
[329751429,1718649046715,-151.0,0.00021917,2]
[329751430,1718649046725,-293.679135,0.00021917,2]
[329751431,1718649046734,-500.0,0.00021917,2]
[329751432,1718649046744,-2156.49,0.00021917,2]
[329751433,1718649046753,-500.0,0.00021917,2]
[329751434,1718649046762,-500.0,0.00021917,2]
[329751435,1718649046773,-486.39039287,0.00021917,2]
[329751436,1718649046782,-500.0,0.00021917,2]
[329751437,1718649046791,-151.0,0.00021917,2]
[329751438,1718649046800,-500.0,0.00021917,2]
[329751439,1718649046809,-151.0,0.00021917,2]
[329751440,1718649046818,-500.0,0.00021917,2]
[329751441,1718649046827,-272.194074,0.00021917,2]
[329751442,1718649046836,-272.194074,0.00021917,2]
[329751443,1718649046846,-500.0,0.00021917,2]
[329751444,1718649046855,-758.43,0.00021917,2]
[329751445,1718649046864,-500.0,0.00021917,2]
[329751446,1718649046873,-969.29,0.00021917,2]
[329751447,1718649046883,-1133.27,0.00021917,2]
[329751448,1718649046896,-500.0,0.00021917,2]
[329751449,1718649046906,-500.0,0.00021917,2]
[329751450,1718649046915,-500.0,0.00021917,2]
[329751451,1718649046924,-500.0,0.00021917,2]
[329751452,1718649046935,-368.02980478,0.00021917,2]
[329751453,1718649046944,-500.0,0.00021917,2]
[329751454,1718649046953,-1214.57,0.00021917,2]
[329751455,1718649046963,-500.0,0.00021917,2]
[329751456,1718649046974,-500.0,0.00021917,2]
[329751457,1718649046983,-1807.35,0.00021917,2]
[329751458,1718649046993,-1807.32,0.00021917,2]
[329751459,1718649047002,-500.0,0.00021917,2]
[329751460,1718649047011,-500.0,0.00021917,2]
[329751461,1718649047022,-558.83,0.00021917,2]
[329751462,1718649047032,-500.0,0.00021917,2]
[329751463,1718649047041,-500.0,0.00021917,2]
[329751464,1718649047050,-500.0,0.00021917,2]
[329751465,1718649047060,-500.0,0.00021917,2]
[329751466,1718649047070,-502.11015103,0.00021917,2]
[329751467,1718649047087,-474.88984897,0.00021917,2]
[329751468,1718649047096,-500.0,0.00021917,2]
[329751469,1718649047106,-500.0,0.00021917,2]
[329751470,1718649047115,-500.0,0.00021917,2]
[329751471,1718649047125,-519.24319854,0.00021917,2]
[329751473,1718649047135,-500.0,0.00021917,2]
[329751475,1718649047145,-1175.31,0.00021917,2]
[329751476,1718649047154,-563.68726119,0.00021917,2]
[329751477,1718649047163,-2000.0,0.00021917,2]
[329751478,1718649047172,-500.0,0.00021917,2]
[329751479,1718649047182,-500.0,0.00021917,2]
[329751480,1718649047192,-536.35396035,0.00021917,2]
[329751481,1718649047201,-500.0,0.00021917,2]
[329751482,1718649047210,-500.0,0.00021917,2]
[329751483,1718649047219,-500.0,0.00021917,2]
[329751484,1718649047229,-689.31,0.00021917,2]
[329751485,1718649047238,-500.0,0.00021917,2]
[329751486,1718649047248,-500.0,0.00021917,2]
[329751488,1718649047258,-500.0,0.00021917,2]
[329751489,1718649047268,-500.0,0.00021917,2]
[329751490,1718649047277,-500.0,0.00021917,2]
[329751491,1718649047287,-500.0,0.00021917,2]
[329751492,1718649047297,-500.0,0.00021917,2]
[329751493,1718649047306,-500.0,0.00021917,2]
[329751494,1718649047316,-913.37,0.00021917,2]
[329751495,1718649047325,-500.0,0.00021917,2]
[329751496,1718649047334,-151.0,0.00021917,2]
[329751497,1718649047343,-151.0,0.00021917,2]
[329751499,1718649047353,-500.0,0.00021917,2]
[329751501,1718649047362,-541.35,0.00021917,2]
[329751503,1718649047371,-151.0,0.00021917,2]
[329751505,1718649047381,-2204.63,0.00021917,2]
[329751507,1718649047390,-519.49825168,0.00021917,2]
[329751509,1718649047399,-151.0,0.00021917,2]
[329751512,1718649047409,-500.0,0.00021917,2]
[329751515,1718649047418,-1295.58,0.00021917,2]
[329751517,1718649047427,-500.0,0.00021917,2]
[329751519,1718649047437,-151.0,0.00021917,2]
[329751521,1718649047446,-151.0,0.00021917,2]
[329751523,1718649047455,-151.0,0.00021917,2]
[329751525,1718649047464,-1685.19,0.00021917,2]
[329751527,1718649047474,-525.49141042,0.00021917,2]
[329751529,1718649047484,-815.74,0.00021917,2]
[329751531,1718649047494,-1375.65,0.00021917,2]
[329751533,1718649047503,-636.0,0.00021917,2]
[329751535,1718649047512,-500.0,0.00021917,2]
[329751537,1718649047523,-1000.0,0.00021917,2]
[329751538,1718649047532,-684.96,0.00021917,2]
[329751540,1718649047542,-500.0,0.00021917,2]
[329751542,1718649047551,-500.0,0.00021917,2]
[329751544,1718649047560,-500.0,0.00021917,2]
[329751546,1718649047570,-500.0,0.00021917,2]
[329751548,1718649047579,-1150.12,0.00021917,2]
[329751550,1718649047588,-1098.72,0.00021917,2]
[329751551,1718649047597,-528.28,0.00021917,2]
[329751552,1718649047607,-681.43,0.00021917,2]
[329751553,1718649047616,-500.0,0.00021917,2]
[329751554,1718649047625,-500.0,0.00021917,2]
[329751555,1718649047634,-151.0,0.00021917,2]
[329751556,1718649047643,-151.0,0.00021917,2]
[329751557,1718649047653,-151.0,0.00021917,2]
[329751558,1718649047662,-500.0,0.00021917,2]
[329751559,1718649047672,-745.26,0.00021917,2]
[329751560,1718649047681,-1071.64,0.00021917,2]
[329751561,1718649047690,-500.0,0.00021917,2]
[329751562,1718649047700,-1042.45,0.00021917,2]
[329751563,1718649047709,-500.0,0.00021917,2]
[329751564,1718649047719,-1150.85,0.00021917,2]
[329751565,1718649047729,-500.0,0.00021917,2]
[329751566,1718649047738,-514.99,0.00021917,2]
[329751567,1718649047747,-762.15,0.00021917,2]
[329751568,1718649047756,-500.0,0.00021917,2]
[329751569,1718649047768,-500.0,0.00021917,2]
[329751570,1718649047778,-500.0,0.00021917,2]
[329751571,1718649047792,-768.76,0.00021917,2]
[329751572,1718649047802,-1730.08,0.00021917,2]
[329751573,1718649047811,-500.0,0.00021917,2]
[329751574,1718649047821,-500.0,0.00021917,2]
[329751575,1718649047830,-500.0,0.00021917,2]
[329751576,1718649047839,-151.0,0.00021917,2]
[329751577,1718649047848,-503.21281647,0.00021917,2]
[329751578,1718649047859,-704.56,0.00021917,2]
[329751579,1718649047868,-151.0,0.00021917,2]
[329751580,1718649047877,-151.0,0.00021917,2]
[329751581,1718649047887,-151.0,0.00021917,2]
[329751584,1718649047896,-151.0,0.00021917,2]
[329751586,1718649047913,-3621.51,0.00021917,2]
[329751588,1718649047923,-151.0,0.00021917,2]
[329751590,1718649047932,-500.0,0.00021917,2]
[329751592,1718649047942,-500.0,0.00021917,2]
[329751593,1718649047954,-653.33,0.00021917,2]
[329751594,1718649047964,-625.32,0.00021917,2]
[329751595,1718649047974,-500.0,0.00021917,2]
[329751596,1718649047984,-500.0,0.00021917,2]
[329751597,1718649047993,-1108.2,0.00021917,2]
[329751598,1718649048003,-151.0,0.00021917,2]
[329751599,1718649048013,-648.90362954,0.00021917,2]
[329751600,1718649048027,-2523.51,0.00021917,2]
[329751601,1718649048037,-150.0,0.00021917,2]
[329751602,1718649048047,-150.0,0.00021917,2]
[329751603,1718649048058,-948.23,0.00021917,2]
[329751604,1718649048068,-500.0,0.00021917,2]
[329751605,1718649048078,-1447.98,0.00021917,2]
[329751606,1718649048089,-500.0,0.00021917,2]
[329751607,1718649048100,-952.04,0.00021917,2]
[329751608,1718649048110,-500.0,0.00021917,2]
[329751609,1718649048120,-516.0103209,0.00021917,2]
[329751610,1718649048130,-500.0,0.00021917,2]
[329751611,1718649048141,-500.0,0.00021917,2]
[329751612,1718649048152,-500.0,0.00021917,2]
[329751613,1718649048163,-500.0,0.00021917,2]
[329751614,1718649048174,-151.0,0.00021917,2]
[329751615,1718649048185,-675.47,0.00021917,2]
[329751616,1718649048196,-151.0,0.00021917,2]
[329751617,1718649048206,-151.0,0.00021917,2]
[329751618,1718649048215,-500.0,0.00021917,2]
[329751619,1718649048225,-533.75531624,0.00021917,2]
[329751620,1718649048234,-624.58,0.00021917,2]
[329751621,1718649048245,-500.0,0.00021917,2]
[329751622,1718649048254,-939.82,0.00021917,2]
[329751623,1718649048263,-592.76,0.00021917,2]
[329751624,1718649048282,-500.0,0.00021917,2]
[329751625,1718649048292,-500.0,0.00021917,2]
[329751626,1718649048303,-744.17,0.00021917,2]
[329751627,1718649048312,-500.0,0.00021917,2]
[329751628,1718649048322,-500.0,0.00021917,2]
[329751629,1718649048332,-749.66,0.00021917,2]
[329751630,1718649048342,-151.0,0.00021917,2]
[329751631,1718649048352,-151.0,0.00021917,2]
[329751632,1718649048361,-588.68,0.00021917,2]
[329751633,1718649048371,-151.0,0.00021917,2]
[329751634,1718649048381,-500.0,0.00021917,2]
[329751635,1718649048391,-1719.03,0.00021917,2]
[329751636,1718649048401,-500.0,0.00021917,2]
[329751637,1718649048410,-151.0,0.00021917,2]
[329751638,1718649048420,-151.0,0.00021917,2]
[329751639,1718649048429,-151.0,0.00021917,2]
[329751640,1718649048439,-500.0,0.00021917,2]
[329751641,1718649048449,-500.0,0.00021917,2]
[329751642,1718649048459,-500.0,0.00021917,2]
[329751643,1718649048469,-546.82,0.00021917,2]
[329751644,1718649048479,-500.0,0.00021917,2]
[329751645,1718649048488,-500.0,0.00021917,2]
[329751646,1718649048498,-563.54,0.00021917,2]
[329751647,1718649048508,-786.79,0.00021917,2]
[329751648,1718649048520,-756.89,0.00021917,2]
[329751649,1718649048530,-605.66284768,0.00021917,2]
[329751650,1718649048540,-500.0,0.00021917,2]
[329751651,1718649048549,-738.16,0.00021917,2]
[329751652,1718649048558,-500.0,0.00021917,2]
[329751653,1718649048568,-658.73,0.00021917,2]
[329751654,1718649048578,-543.67583911,0.00021917,2]
[329751655,1718649048587,-500.0,0.00021917,2]
[329751656,1718649048597,-470.58077897,0.00021917,2]
[329751657,1718649048606,-624.52321401,0.00021917,2]
[329751658,1718649048616,-613.75,0.00021917,2]
[329751659,1718649048625,-623.51,0.00021917,2]
[329751660,1718649048634,-629.36484932,0.00021917,2]
[329751661,1718649048644,-629.52,0.00021917,2]
[329751662,1718649048653,-669.95,0.00021917,2]
[329751663,1718649048662,-3069.84,0.00021917,2]
[329751664,1718649048671,-503.22026369,0.00021917,2]
[329751665,1718649048680,-745.13,0.00021917,2]
[329751666,1718649048689,-500.0,0.00021917,2]
[329751667,1718649048699,-500.0,0.00021917,2]
[329751668,1718649048708,-151.0,0.00021917,2]
[329751669,1718649048717,-500.0,0.00021917,2]
[329751670,1718649048726,-151.0,0.00021917,2]
[329751671,1718649048736,-151.0,0.00021917,2]
[329751672,1718649048745,-1008.1,0.00021917,2]
[329751673,1718649048755,-915.76,0.00021917,2]
[329751674,1718649048764,-500.0,0.00021917,2]
[329751675,1718649048777,-500.0,0.00021917,2]
[329751676,1718649048786,-550.66,0.00021917,2]
[329751677,1718649048795,-533.74874192,0.00021917,2]
[329751678,1718649048805,-516.84071397,0.00021917,2]
[329751679,1718649048814,-571.38,0.00021917,2]
[329751680,1718649048824,-793.3,0.00021917,2]
[329751681,1718649048833,-151.0,0.00021917,2]
[329751682,1718649048842,-513.01092889,0.00021917,2]
[329751683,1718649048851,-500.0,0.00021917,2]
[329751684,1718649048860,-151.0,0.00021917,2]
[329751685,1718649048870,-504.68064139,0.00021917,2]
[329751686,1718649048879,-500.0,0.00021917,2]
[329751687,1718649048889,-500.0,0.00021917,2]
[329751688,1718649048904,-151.0,0.00021917,2]
[329751689,1718649048913,-500.0,0.00021917,2]
[329751690,1718649048923,-500.0,0.00021917,2]
[329751691,1718649048933,-1134.91,0.00021917,2]
[329751692,1718649048944,-500.0,0.00021917,2]
[329751693,1718649048954,-500.0,0.00021917,2]
[329751694,1718649048963,-500.0,0.00021917,2]
[329751695,1718649048973,-542.07243569,0.00021917,2]
[329751696,1718649048983,-1740.43,0.00021917,2]
[329751697,1718649048992,-906.41,0.00021917,2]
[329751698,1718649049002,-500.0,0.00021917,2]
[329751699,1718649049011,-500.0,0.00021917,2]
[329751700,1718649049024,-500.0,0.00021917,2]
[329751701,1718649049034,-500.0,0.00021917,2]
[329751702,1718649049044,-500.0,0.00021917,2]
[329751703,1718649049054,-949.59,0.00021917,2]
[329751704,1718649049065,-1394.69,0.00021917,2]
[329751705,1718649049074,-500.0,0.00021917,2]
[329751706,1718649049084,-500.0,0.00021917,2]
[329751707,1718649049094,-917.42,0.00021917,2]
[329751708,1718649049103,-398.90417148,0.00021917,2]
[329751709,1718649049113,-500.0,0.00021917,2]
[329751710,1718649049123,-500.0,0.00021917,2]
[329751711,1718649049132,-500.0,0.00021917,2]
[329751712,1718649049142,-690.8,0.00021917,2]
[329751713,1718649049151,-1717.06,0.00021917,2]
[329751714,1718649049160,-500.0,0.00021917,2]
[329751715,1718649049169,-500.0,0.00021917,2]
[329751716,1718649049179,-1023.69,0.00021917,2]
[329751717,1718649049188,-500.0,0.00021917,2]
[329751718,1718649049197,-500.34911187,0.00021917,2]
[329751719,1718649049207,-500.0,0.00021917,2]
[329751720,1718649049217,-500.0,0.00021917,2]
[329751721,1718649049227,-500.0,0.00021917,2]
[329751722,1718649049236,-500.0,0.00021917,2]
[329751723,1718649049245,-500.0,0.00021917,2]
[329751724,1718649049254,-500.0,0.00021917,2]
[329751725,1718649049263,-569.38,0.00021917,2]
[329751726,1718649049278,-500.0,0.00021917,2]
[329751727,1718649049288,-500.0,0.00021917,2]
[329751728,1718649049297,-500.0,0.00021917,2]
[329751729,1718649049305,-595.95,0.00021917,2]
[329751730,1718649049314,-858.51,0.00021917,2]
[329751731,1718649049323,-1195.99,0.00021917,2]
[329751732,1718649049332,-500.0,0.00021917,2]
[329751733,1718649049341,-500.0,0.00021917,2]
[329751734,1718649049350,-500.0,0.00021917,2]
[329751735,1718649049360,-2470.12,0.00021917,2]
[329751736,1718649049531,-500.0,0.00021917,2]
[329751737,1718649049564,-500.0,0.00021917,2]
[329751738,1718649049574,-500.0,0.00021917,2]
[329751739,1718649049584,-837.24,0.00021917,2]
[329751740,1718649049593,-500.0,0.00021917,2]
[329751741,1718649049603,-500.0,0.00021917,2]
[329751742,1718649049612,-327.63445555,0.00021917,2]
[329751743,1718649049621,-500.0,0.00021917,2]
[329751744,1718649049631,-752.66,0.00021917,2]
[329751745,1718649049640,-500.0,0.00021917,2]
[329751746,1718649049649,-783.29,0.00021917,2]
[329751747,1718649049658,-151.0,0.00021917,2]
[329751748,1718649049668,-157.657945,0.00021917,2]
[329751749,1718649049677,-500.0,0.00021917,2]
[329751750,1718649049687,-1102.68,0.00021917,2]
[329751751,1718649049696,-1528.53,0.00021917,2]
[329751752,1718649049705,-500.0,0.00021917,2]
[329751753,1718649049714,-500.0,0.00021917,2]
[329751754,1718649049723,-1031.98,0.00021917,2]
[329751755,1718649049732,-151.0,0.00021917,2]
[329751756,1718649049742,-500.0,0.00021917,2]
[329751757,1718649049751,-178.059585,0.00021917,2]
[329751758,1718649049761,-500.0,0.00021917,2]
[329751759,1718649049775,-151.0,0.00021917,2]
[329751760,1718649049785,-151.0,0.00021917,2]
[329751761,1718649049794,-151.0,0.00021917,2]
[329751762,1718649049804,-500.0,0.00021917,2]
[329751763,1718649049814,-500.0,0.00021917,2]
[329751764,1718649049823,-500.0,0.00021917,2]
[329751765,1718649049832,-541.14,0.00021917,2]
[329751766,1718649049841,-2310.99,0.00021917,2]
[329751767,1718649049853,-514.008351,0.00021917,2]
[329751768,1718649049862,-496.97748013,0.00021917,2]
[329751769,1718649049871,-887.74,0.00021917,2]
[329751770,1718649049881,-540.93,0.00021917,2]
[329751771,1718649049892,-749.34,0.00021917,2]
[329751772,1718649049903,-500.0,0.00021917,2]
[329751773,1718649049912,-500.0,0.00021917,2]
[329751774,1718649049922,-500.0,0.00021917,2]
[329751775,1718649049931,-500.0,0.00021917,2]
[329751776,1718649049941,-2000.0,0.00021917,2]
[329751777,1718649049950,-899.88,0.00021917,2]
[329751778,1718649049959,-500.0,0.00021917,2]
[329751779,1718649049968,-151.0,0.00021917,2]
[329751780,1718649049978,-151.0,0.00021917,2]
[329751781,1718649049989,-151.0,0.00021917,2]
[329751782,1718649049998,-500.0,0.00021917,2]
[329751783,1718649050008,-200.0,0.00021917,2]
[329751784,1718649050021,-500.0,0.00021917,2]
[329751785,1718649050030,-894.09,0.00021917,2]
[329751786,1718649050039,-500.0,0.00021917,2]
[329751787,1718649050048,-500.0,0.00021917,2]
[329751788,1718649050058,-500.0,0.00021917,2]
[329751789,1718649050068,-500.0,0.00021917,2]
[329751790,1718649050078,-615.42,0.00021917,2]
[329751791,1718649050088,-500.0,0.00021917,2]
[329751792,1718649050098,-1073.04,0.00021917,2]
[329751793,1718649050107,-500.0,0.00021917,2]
[329751794,1718649050116,-500.0,0.00021917,2]
[329751795,1718649050126,-500.0,0.00021917,2]
[329751796,1718649050135,-500.0,0.00021917,2]
[329751797,1718649050144,-500.0,0.00021917,2]
[329751798,1718649050155,-397.74411215,0.00021917,2]
[329751799,1718649050164,-836.84,0.00021917,2]
[329751800,1718649050173,-505.02900136,0.00021917,2]
[329751801,1718649050183,-500.0,0.00021917,2]
[329751802,1718649050193,-637.88,0.00021917,2]
[329751803,1718649050204,-537.76,0.00021917,2]
[329751804,1718649050213,-500.0,0.00021917,2]
[329751805,1718649050223,-500.0,0.00021917,2]
[329751806,1718649050232,-910.86,0.00021917,2]
[329751807,1718649050241,-500.0,0.00021917,2]
[329751808,1718649050251,-500.0,0.00021917,2]
[329751809,1718649050262,-500.0,0.00021917,2]
[329751810,1718649050276,-500.0,0.00021917,2]
[329751811,1718649050285,-500.0,0.00021917,2]
[329751812,1718649050294,-500.0,0.00021917,2]
[329751813,1718649050304,-500.0,0.00021917,2]
[329751814,1718649050313,-501.01435583,0.00021917,2]
[329751815,1718649050323,-500.0,0.00021917,2]
[329751816,1718649050333,-500.0,0.00021917,2]
[329751817,1718649050342,-699.7,0.00021917,2]
[329751818,1718649050352,-500.0,0.00021917,2]
[329751819,1718649050361,-1257.94,0.00021917,2]
[329751820,1718649050371,-500.0,0.00021917,2]
[329751821,1718649050380,-500.0,0.00021917,2]
[329751822,1718649050389,-500.0,0.00021917,2]
[329751823,1718649050399,-746.35,0.00021917,2]
[329751824,1718649050408,-500.0,0.00021917,2]
[329751825,1718649050419,-500.0,0.00021917,2]
[329751826,1718649050429,-1951.85,0.00021917,2]
[329751827,1718649050438,-500.0,0.00021917,2]
[329751828,1718649050447,-852.6,0.00021917,2]
[329751829,1718649050457,-500.0,0.00021917,2]
[329751830,1718649050467,-500.0,0.00021917,2]
[329751831,1718649050476,-500.0,0.00021917,2]
[329751832,1718649050486,-500.0,0.00021917,2]
[329751833,1718649050496,-151.0,0.00021917,2]
[329751834,1718649050506,-776.0,0.00021917,2]
[329751835,1718649050515,-2271.89,0.00021917,2]
[329751836,1718649050528,-151.0,0.00021917,2]
[329751837,1718649050537,-500.0,0.00021917,2]
[329751838,1718649050548,-500.0,0.00021917,2]
[329751839,1718649050557,-151.0,0.00021917,2]
[329751840,1718649050566,-598.63574255,0.00021917,2]
[329751841,1718649050576,-500.0,0.00021917,2]
[329751842,1718649050586,-500.0,0.00021917,2]
[329751843,1718649050595,-721.1,0.00021917,2]
[329751844,1718649050605,-501.38066025,0.00021917,2]
[329751845,1718649050615,-542.28,0.00021917,2]
[329751846,1718649050626,-500.0,0.00021917,2]
[329751847,1718649050635,-500.0,0.00021917,2]
[329751848,1718649050645,-500.0,0.00021917,2]
[329751849,1718649050655,-926.5,0.00021917,2]
[329751850,1718649050664,-500.0,0.00021917,2]
[329751851,1718649050674,-500.0,0.00021917,2]
[329751852,1718649050683,-500.0,0.00021917,2]
[329751853,1718649050693,-500.0,0.00021917,2]
[329751854,1718649050702,-500.0,0.00021917,2]
[329751855,1718649050712,-979.84,0.00021917,2]
[329751856,1718649050722,-740.8,0.00021917,2]
[329751857,1718649050732,-500.0,0.00021917,2]
[329751858,1718649050741,-496.85673368,0.00021917,2]
[329751859,1718649050750,-758.89,0.00021917,2]
[329751860,1718649050759,-697.41,0.00021917,2]
[329751861,1718649050771,-151.0,0.00021917,2]
[329751862,1718649050780,-151.0,0.00021917,2]
[329751863,1718649050789,-151.0,0.00021917,2]
[329751864,1718649050798,-500.0,0.00021917,2]
[329751865,1718649050807,-388.20631711,0.00021917,2]
[329751866,1718649050815,-1108.38,0.00021917,2]
[329751867,1718649050824,-898.07,0.00021917,2]
[329751868,1718649050833,-3096.83,0.00021917,2]
[329751869,1718649050843,-1149.98,0.00021917,2]
[329751870,1718649050852,-500.0,0.00021917,2]
[329751871,1718649050860,-1246.67,0.00021917,2]
[329751872,1718649050869,-381.37003774,0.00021917,2]
[329751873,1718649050878,-500.0,0.00021917,2]
[329751874,1718649050887,-500.0,0.00021917,2]
[329751875,1718649050897,-500.0,0.00021917,2]
[329751876,1718649050912,-500.0,0.00021917,2]
[329751877,1718649050921,-1418.86,0.00021917,2]
[329751878,1718649050930,-151.0,0.00021917,2]
[329751879,1718649050940,-486.76,0.00021917,2]
[329751880,1718649050949,-151.0,0.00021917,2]
[329751881,1718649050959,-154.756766,0.00021917,2]
[329751882,1718649050968,-151.0,0.00021917,2]
[329751883,1718649050979,-574.16,0.00021917,2]
[329751884,1718649050989,-2623.93,0.00021917,2]
[329751885,1718649050999,-5164.08,0.00021917,2]
[329751886,1718649051008,-500.0,0.00021917,2]
[329751887,1718649051019,-500.0,0.00021917,2]
[329751888,1718649051030,-1939.15354,0.00021917,2]
[329751889,1718649051039,-500.0,0.00021917,2]
[329751890,1718649051049,-243.218,0.00021917,2]
[329751891,1718649051059,-741.47,0.00021917,2]
[329751892,1718649051068,-243.218,0.00021917,2]
[329751893,1718649051077,-243.218,0.00021917,2]
[329751894,1718649051086,-4079.97,0.00021917,2]
[329751895,1718649051095,-500.0,0.00021917,2]
[329751896,1718649051104,-558.77230651,0.00021917,2]
[329751897,1718649051114,-500.0,0.00021917,2]
[329751898,1718649051123,-500.0,0.00021917,2]
[329751899,1718649051132,-500.0,0.00021917,2]
[329751900,1718649051140,-500.0,0.00021917,2]
[329751901,1718649051149,-243.218,0.00021917,2]
[329751902,1718649051159,-1240.38,0.00021917,2]
[329751903,1718649051168,-243.218,0.00021917,2]
[329751904,1718649051177,-243.218,0.00021917,2]
[329751905,1718649051187,-418.20899471,0.00021917,2]
[329751906,1718649051196,-500.0,0.00021917,2]
[329751907,1718649051205,-500.0,0.00021917,2]
[329751908,1718649051216,-500.0,0.00021917,2]
[329751909,1718649051226,-1583.77,0.00021917,2]
[329751910,1718649051235,-500.0,0.00021917,2]
[329751911,1718649051245,-812.46,0.00021917,2]
[329751912,1718649051254,-500.0,0.00021917,2]
[329751913,1718649051263,-2003.48,0.00021917,2]
[329751914,1718649051276,-506.95,0.00021917,2]
[329751915,1718649051285,-1908.35,0.00021917,2]
[329751916,1718649051294,-500.0,0.00021917,2]
[329751917,1718649051303,-500.0,0.00021917,2]
[329751918,1718649051312,-500.0,0.00021917,2]
[329751919,1718649051321,-500.0,0.00021917,2]
[329751920,1718649051331,-500.0,0.00021917,2]
[329751921,1718649051339,-500.0,0.00021917,2]
[329751922,1718649051349,-3434.35,0.00021917,2]
[329751923,1718649051358,-2076.16,0.00021917,2]
[329751924,1718649051367,-500.0,0.00021917,2]
[329751925,1718649051376,-500.0,0.00021917,2]
[329751926,1718649051385,-500.0,0.00021917,2]
[329751927,1718649051394,-151.0,0.00021917,2]
[329751928,1718649051403,-1221.31,0.00021917,2]
[329751929,1718649051412,-500.0,0.00021917,2]
[329751930,1718649051421,-151.0,0.00021917,2]
[329751931,1718649051431,-500.0,0.00021917,2]
[329751932,1718649051439,-500.0,0.00021917,2]
[329751933,1718649051449,-1171.04,0.00021917,2]
[329751934,1718649051458,-500.0,0.00021917,2]
[329751935,1718649051467,-1198.97,0.00021917,2]
[329751936,1718649051476,-550.63,0.00021917,2]
[329751937,1718649051488,-500.0,0.00021917,2]
[329751938,1718649051497,-1242.88,0.00021917,2]
[329751939,1718649051507,-1345.32,0.00021917,2]
[329751940,1718649051516,-500.0,0.00021917,2]
[329751941,1718649051529,-151.0,0.00021917,2]
[329751942,1718649051538,-151.0,0.00021917,2]
[329751943,1718649051548,-838.68,0.00021917,2]
[329751944,1718649051557,-878.92,0.00021917,2]
[329751945,1718649051566,-500.0,0.00021917,2]
[329751946,1718649051575,-500.0,0.00021917,2]
[329751947,1718649051584,-151.0,0.00021917,2]
[329751948,1718649051595,-534.12376045,0.00021917,2]
[329751949,1718649051604,-2447.94,0.00021917,2]
[329751950,1718649051613,-500.0,0.00021917,2]
[329751951,1718649051622,-500.0,0.00021917,2]
[329751952,1718649051632,-525.3,0.00021917,2]
[329751953,1718649051642,-5649.21,0.00021917,2]
[329751954,1718649051652,-52188.24,0.00021917,2]
[329751955,1718649051662,-151.0,0.00021917,2]
[329751956,1718649051672,-151.0,0.00021917,2]